bitfinex/quotes_SOLUSD_20250308
["timestamp","ask_amount","ask_price","bid_price","bid_amount"]
[1741407575683,20.85973749,140.27,140.21,27.99183749]
[1741407576713,20.85973749,140.27,140.21,24.9624]
[1741407576914,20.85973749,140.26,140.21,24.9624]
[1741407577210,20.85973749,140.27,140.21,45.82213749]
[1741407579022,20.85973749,140.26,140.21,24.9624]
[1741407579802,20.85973749,140.26,140.21,7.1321]
[1741407580004,20.85973749,140.25,140.21,7.1321]
[1741407580509,20.85973749,140.24,140.2,7.1326]
[1741407581057,20.85973749,140.25,140.2,7.1326]
[1741407582824,20.85973749,140.26,140.2,45.82393749]
[1741407583619,0.03,140.28,140.23,20.85973749]
[1741407583917,0.03,140.28,140.26,20.85973749]
[1741407584230,0.03,140.28,140.26,134.5999]
[1741407584802,0.03,140.28,140.26,141.729]
[1741407585411,0.03,140.28,140.26,134.5999]
[1741407586824,0.03,140.28,140.26,141.7293]
[1741407587346,0.03,140.28,140.26,27.98913749]
[1741407588242,0.03,140.28,140.26,162.58903749]
[1741407588417,0.03,140.28,140.27,20.85973749]
[1741407588731,0.03,140.28,140.26,155.45963749]
[1741407588934,0.03,140.28,140.26,162.58913749]
[1741407589120,0.03,140.28,140.26,155.45963749]
[1741407589631,0.03,140.28,140.26,20.85973749]
[1741407589837,0.03,140.28,140.25,134.5999]
[1741407590005,0.03,140.28,140.25,162.58963749]
[1741407593045,0.03,140.28,140.25,134.5999]
[1741407593217,0.03,140.28,140.24,169.21003749]
[1741407595942,20.85973749,140.26,140.2,134.5999]
[1741407596144,0.03,140.28,140.26,134.5999]
[1741407596316,0.03,140.28,140.27,20.85973749]
[1741407596518,0.03,140.28,140.26,141.2799]
[1741407597037,0.03,140.28,140.25,0.033]
[1741407598241,0.03,140.28,140.26,20.85973749]
[1741407598739,0.03,140.28,140.26,134.5999]
[1741407601827,0.03,140.28,140.26,141.7293]
[1741407602228,0.03,140.28,140.26,27.98913749]
[1741407602435,0.03,140.28,140.27,20.85973749]
[1741407602742,0.03,140.28,140.27,153.24954886]
[1741407603049,0.03,140.28,140.27,174.10928635]
[1741407604432,0.03,140.28,140.27,181.23838635]
[1741407605644,0.03,140.29,140.28,153.24954886]
[1741407605845,0.0001,140.29,140.28,174.10928635]
[1741407607744,0.0001,140.29,140.28,181.23778635]
[1741407607964,6.71,140.4,140.33,20.85973749]
[1741407607965,0.03,140.4,140.33,20.85973749]
[1741407608247,20.88973749,140.4,140.34,20.85973749]
[1741407608432,20.88973749,140.4,140.33,155.45963749]
[1741407608833,0.03,140.4,140.35,20.85973749]
[1741407609063,0.03,140.4,140.36,39.50938635]
[1741407609245,0.03,140.4,140.36,174.10928635]
[1741407609853,0.03,140.4,140.37,7.124]
[1741407610052,0.03,140.4,140.36,153.24954886]
[1741407610361,0.03,140.4,140.36,141.7242]
[1741407610654,0.03,140.4,140.36,134.5999]
[1741407611353,20.85973749,140.39,140.33,141.7258]
[1741407612132,20.85973749,140.37,140.33,134.5999]
[1741407612452,27.98273749,140.39,140.33,134.5999]
[1741407612624,20.85973749,140.37,140.33,134.5999]
[1741407613026,20.85973749,140.36,140.33,134.5999]
[1741407613266,20.85973749,140.37,140.33,134.5999]
[1741407613739,20.85973749,140.38,140.33,134.5999]
[1741407614041,20.85973749,140.38,140.33,141.7259]
[1741407614544,20.85973749,140.37,140.32,141.7263]
[1741407616158,20.85973749,140.38,140.32,162.58603749]
[1741407617355,20.85973749,140.38,140.32,141.7263]
[1741407617556,27.98333749,140.38,140.32,141.7263]
[1741407618262,20.85973749,140.37,140.32,141.7263]
[1741407618861,20.85973749,140.37,140.32,134.5999]
[1741407619367,20.85973749,140.37,140.32,141.7263]
[1741407619733,20.85973749,140.37,140.32,134.5999]
[1741407619930,27.98383749,140.37,140.31,143.3481]
[1741407620447,27.98383749,140.37,140.31,164.20783749]
[1741407620862,28.01383749,140.37,140.31,164.20783749]
[1741407623470,0.03,140.37,140.32,20.85973749]
[1741407624952,0.03,140.37,140.34,20.85973749]
[1741407625454,0.03,140.37,140.36,39.50938635]
[1741407625659,0.03,140.37,140.36,174.10928635]
[1741407626654,0.03,140.37,140.36,181.23378635]
[1741407626859,0.03,140.4,140.36,199.04508635]
[1741407627065,0.03,140.4,140.38,18.64964886]
[1741407627244,0.03,140.4,140.38,39.50938635]
[1741407628237,0.03,140.4,140.38,134.5999]
[1741407630443,0.03,140.4,140.38,141.7232]
[1741407631869,0.03,140.4,140.36,155.45963749]
[1741407632072,0.03,140.4,140.38,20.85973749]
[1741407634066,0.03,140.4,140.39,7.123]
[1741407634266,0.03,140.4,140.39,141.7229]
[1741407634458,0.03,140.4,140.39,181.23228635]
[1741407635157,0.03,140.4,140.39,160.37254886]
[1741407635357,0.03,140.4,140.39,181.23228635]
[1741407636161,0.03,140.4,140.39,187.85228635]
[1741407639583,6.4124,140.47,140.4,18.64964886]
[1741407639784,24.46597379,140.5,140.44,20.85973749]
[1741407640078,24.46597379,140.5,140.44,155.45963749]
[1741407640387,2.0472363,140.5,140.48,20.85973749]
[1741407640554,2.0472363,140.5,140.47,20.85973749]
[1741407640901,2.0472363,140.5,140.46,7.1193]
[1741407641247,2.0472363,140.5,140.47,18.64964886]
[1741407641447,2.0472363,140.5,140.48,20.85973749]
[1741407641669,2.0472363,140.5,140.49,46.14938635]
[1741407642249,2.0472363,140.5,140.49,180.74928635]
[1741407642553,2.0472363,140.5,140.49,187.86718635]
[1741407643453,1.5472363,140.5,140.49,187.86718635]
[1741407643844,1.5472363,140.5,140.49,180.74928635]
[1741407644051,1.5472363,140.5,140.49,134.5999]
[1741407644250,1.5472363,140.5,140.47,134.5999]
[1741407645455,1.5772363,140.5,140.47,134.5999]
[1741407645656,22.43697379,140.5,140.47,134.5999]
[1741407645979,1.5772363,140.5,140.47,134.5999]
[1741407646646,29.55447379,140.5,140.43,180.72928635]
[1741407646850,20.85973749,140.49,140.43,180.72928635]
[1741407647052,20.85973749,140.49,140.43,187.84998635]
[1741407648279,29.55447379,140.5,140.43,187.84998635]
[1741407649181,29.55447379,140.5,140.43,169.20033749]
[1741407649395,29.55447379,140.5,140.44,20.85973749]
[1741407650885,29.55447379,140.5,140.44,27.98003749]
[1741407651260,1.5772363,140.5,140.44,27.98003749]
[1741407651863,22.43697379,140.5,140.44,27.98003749]
[1741407652393,29.55437379,140.5,140.44,7.1203]
[1741407652601,20.85973749,140.49,140.43,169.20043749]
[1741407653774,29.55437379,140.5,140.44,20.85973749]
[1741407653976,1.5772363,140.5,140.44,20.85973749]
[1741407654288,29.55437379,140.5,140.44,20.85973749]
[1741407655403,20.85973749,140.49,140.43,169.20043749]
[1741407656788,20.85973749,140.49,140.44,20.85973749]
[1741407657593,20.85973749,140.49,140.43,148.3407]
[1741407657594,20.85973749,140.47,140.43,134.5999]
[1741407657804,20.85973749,140.45,140.41,134.5999]
[1741407658013,8.1605,140.48,140.39,134.5999]
[1741407658014,20.85973749,140.43,140.39,134.5999]
[1741407658508,20.85973749,140.41,140.37,134.6329]
[1741407658669,20.85973749,140.4,140.37,0.033]
[1741407659369,20.85973749,140.41,140.37,0.033]
[1741407659569,20.85973749,140.42,140.37,0.033]
[1741407659867,20.85973749,140.45,140.39,20.85973749]
[1741407660305,20.85973749,140.45,140.38,20.85973749]
[1741407660600,20.85973749,140.44,140.38,20.85973749]
[1741407660765,20.85973749,140.45,140.39,7.123]
[1741407660964,20.85973749,140.46,140.4,20.85973749]
[1741407662094,21.879,140.48,140.39,27.98273749]
[1741407662095,20.85973749,140.45,140.39,27.98273749]
[1741407662300,20.85973749,140.45,140.39,7.123]
[1741407663002,20.85973749,140.44,140.39,7.123]
[1741407664774,20.85973749,140.43,140.38,148.3232]
[1741407665686,7.1189,140.47,140.38,169.18293749]
[1741407665888,20.85973749,140.45,140.39,20.85973749]
[1741407666382,20.85973749,140.44,140.38,169.18293749]
[1741407666692,20.85973749,140.45,140.39,20.85973749]
[1741407667198,20.85973749,140.44,140.38,186.99173749]
[1741407667395,20.85973749,140.44,140.38,180.39173749]
[1741407669187,20.85973749,140.44,140.38,159.532]
[1741407669396,20.85973749,140.44,140.38,162.58293749]
[1741407671307,27.98023749,140.44,140.38,162.58293749]
[1741407671506,20.85973749,140.45,140.39,20.85973749]
[1741407671802,20.85973749,140.43,140.38,141.7232]
[1741407672000,20.85973749,140.42,140.38,134.5999]
[1741407672296,20.85973749,140.43,140.37,28.01663749]
[1741407672492,89.4189,140.47,140.38,20.85973749]
[1741407672689,20.85973749,140.45,140.38,155.45963749]
[1741407672879,20.85973749,140.44,140.38,155.45963749]
[1741407673205,7.1189,140.47,140.38,134.5999]
[1741407673206,20.85973749,140.43,140.38,134.5999]
[1741407673497,20.85973749,140.43,140.38,141.7229]
[1741407674088,20.85973749,140.44,140.38,162.58263749]
[1741407674386,20.85973749,140.45,140.39,20.85973749]
[1741407675682,20.85973749,140.45,140.4,7.1225]
[1741407675995,27.97963749,140.45,140.4,7.1225]
[1741407676197,20.85973749,140.45,140.4,7.1225]
[1741407676403,27.97973749,140.45,140.4,7.1225]
[1741407677883,7.1189,140.47,140.4,7.1225]
[1741407678219,20.85973749,140.45,140.4,7.1225]
[1741407679197,20.85973749,140.44,140.4,7.1225]
[1741407679480,20.85973749,140.44,140.39,7.1228]
[1741407679985,27.98043749,140.44,140.39,7.1228]
[1741407680186,20.85973749,140.43,140.38,141.7232]
[1741407680386,20.85973749,140.42,140.38,134.5999]
[1741407680586,20.85973749,140.43,140.38,134.5999]
[1741407680787,20.85973749,140.44,140.38,141.7233]
[1741407682004,20.85973749,140.45,140.38,180.39183749]
[1741407682813,20.85973749,140.44,140.38,180.39183749]
[1741407682995,20.85973749,140.44,140.38,159.5321]
[1741407683191,20.85973749,140.42,140.38,141.7233]
[1741407683399,20.85973749,140.45,140.38,162.58303749]
[1741407684011,20.85973749,140.45,140.38,141.7233]
[1741407684203,20.85973749,140.45,140.38,162.58303749]
[1741407685314,20.85973749,140.45,140.38,180.39183749]
[1741407685498,20.85973749,140.46,140.4,20.85973749]
[1741407686299,1.5772363,140.5,140.43,20.85973749]
[1741407686484,22.43697379,140.5,140.43,20.85973749]
[1741407686899,22.43697379,140.5,140.44,20.85973749]
[1741407687112,1.5772363,140.5,140.45,20.85973749]
[1741407687522,1.5772363,140.5,140.46,7.1194]
[1741407688414,20.85973749,140.48,140.43,141.7207]
[1741407688911,20.85973749,140.48,140.43,134.5999]
[1741407689401,20.85973749,140.48,140.43,141.7208]
[1741407690115,27.97833749,140.48,140.42,7.1213]
[1741407690818,20.85973749,140.47,140.42,7.1213]
[1741407690996,1.5772363,140.5,140.42,27.98103749]
[1741407691195,20.85973749,140.48,140.42,27.98103749]
[1741407691516,20.85973749,140.49,140.42,27.98103749]
[1741407691717,20.85973749,140.49,140.43,20.85973749]
[1741407692014,20.85973749,140.49,140.44,7.1204]
[1741407692321,20.85973749,140.48,140.42,20.85973749]
[1741407692501,20.85973749,140.48,140.43,7.1208]
[1741407693207,20.85973749,140.47,140.42,7.1213]
[1741407693390,20.85973749,140.47,140.41,149.8081]
[1741407694591,20.85973749,140.47,140.41,170.66783749]
[1741407694916,20.85973749,140.46,140.41,136.1263]
[1741407695092,20.85973749,140.46,140.41,1.5264]
[1741407695418,20.85973749,140.46,140.41,8.6483]
[1741407695793,7.1186,140.48,140.41,29.50803749]
[1741407695794,20.85973749,140.47,140.41,29.50803749]
[1741407696330,20.85973749,140.48,140.42,20.85973749]
[1741407697417,20.85973749,140.48,140.42,7.1214]
[1741407698307,20.85973749,140.48,140.42,45.78483749]
[1741407698613,22.43697379,140.5,140.44,20.85973749]
[1741407699217,1.5772363,140.5,140.44,155.45963749]
[1741407699420,1.5772363,140.5,140.45,27.97963749]
[1741407699621,22.43697379,140.5,140.45,7.1199]
[1741407700314,1.5772363,140.5,140.45,27.97963749]
[1741407700700,1.5772363,140.5,140.46,20.85973749]
[1741407700900,1.5772363,140.5,140.46,155.45963749]
[1741407701300,1.5772363,140.5,140.46,134.5999]
[1741407701619,22.43697379,140.5,140.46,134.5999]
[1741407701793,8.6946363,140.5,140.46,134.5999]
[1741407701998,20.85973749,140.48,140.46,134.5999]
[1741407703121,20.85973749,140.47,140.46,134.5999]
[1741407703418,8.6946363,140.5,140.41,111.00763749]
[1741407703419,20.85973749,140.48,140.42,20.85973749]
[1741407703627,20.85973749,140.49,140.43,20.85973749]
[1741407704198,20.85973749,140.48,140.42,155.45963749]
[1741407705208,20.85973749,140.48,140.43,0.033]
[1741407705404,1.5772363,140.5,140.43,28.01363749]
[1741407705604,20.85973749,140.49,140.43,28.01363749]
[1741407706128,1.5772363,140.5,140.44,20.85973749]
[1741407706339,1.5772363,140.5,140.45,20.85973749]
[1741407706516,1.5772363,140.5,140.45,155.45963749]
[1741407707401,1.5772363,140.5,140.45,141.7194]
[1741407707927,1.5772363,140.5,140.45,162.57913749]
[1741407708422,1.5772363,140.5,140.46,20.85973749]
[1741407708816,1.5772363,140.5,140.47,41.01998635]
[1741407709320,1.5772363,140.5,140.48,20.85973749]
[1741407709524,1.5772363,140.5,140.49,27.97763749]
[1741407709924,1.5772363,140.5,140.49,7.1179]
[1741407711011,1.5772363,140.5,140.49,27.97763749]
[1741407711212,1.5772363,140.5,140.49,181.22718635]
[1741407713013,1.5772363,140.5,140.49,141.7178]
[1741407713213,1.5772363,140.5,140.49,181.22718635]
[1741407715128,3.63e-05,140.5,140.49,181.22718635]
[1741407715439,3.63e-05,140.5,140.49,202.08692384]
[1741407716235,0.03,140.55,140.52,134.5999]
[1741407716451,0.03,140.55,140.54,39.50938635]
[1741407717345,0.03,140.55,140.54,46.62478635]
[1741407718622,0.03,140.55,140.54,181.22468635]
[1741407720426,0.03,140.55,140.52,134.5999]
[1741407720625,20.88973749,140.55,140.5,136.1105]
[1741407720936,20.85973749,140.54,140.5,134.5999]
[1741407721719,20.88973749,140.55,140.5,134.5999]
[1741407722016,0.03,140.55,140.5,162.57693749]
[1741407722429,0.03,140.55,140.5,155.45963749]
[1741407722631,20.88973749,140.55,140.5,134.5999]
[1741407723339,20.88973749,140.55,140.5,141.7171]
[1741407723521,0.03,140.55,140.5,162.57683749]
[1741407723727,0.03,140.55,140.5,141.7171]
[1741407723928,0.03,140.55,140.5,134.5999]
[1741407724443,0.03,140.55,140.5,162.57693749]
[1741407724732,0.03,140.55,140.52,20.85973749]
[1741407724943,20.88973749,140.55,140.5,134.5999]
[1741407725547,20.85973749,140.53,140.5,134.5999]
[1741407725919,20.85973749,140.54,140.5,134.5999]
[1741407726120,20.88973749,140.55,140.5,134.5999]
[1741407726625,20.85973749,140.54,140.5,134.5999]
[1741407727829,20.85973749,140.52,140.46,141.7192]
[1741407728135,20.85973749,140.51,140.46,141.7192]
[1741407728445,20.85973749,140.52,140.46,141.7192]
[1741407728747,0.03,140.55,140.46,159.5178]
[1741407728952,20.88973749,140.55,140.48,20.85973749]
[1741407729158,20.85973749,140.53,140.47,20.85973749]
[1741407729749,20.85973749,140.53,140.46,162.57893749]
[1741407730147,20.85973749,140.53,140.47,20.85973749]
[1741407730340,0.03,140.54,140.49,20.85973749]
[1741407730645,0.03,140.54,140.5,7.1174]
[1741407732755,0.03,140.54,140.5,27.97713749]
[1741407732935,0.03,140.54,140.5,45.77063749]
[1741407733350,0.03,140.54,140.51,20.85973749]
[1741407734463,0.03,140.54,140.52,20.85973749]
[1741407734852,0.03,140.54,140.53,7.1159]
[1741407735652,0.03,140.54,140.51,20.85973749]
[1741407735861,0.03,140.54,140.52,7.1162]
[1741407738849,0.03,140.54,140.52,27.97593749]
[1741407739039,0.03,140.54,140.51,141.7166]
[1741407740951,20.88973749,140.54,140.51,134.5999]
[1741407741176,0.03,140.54,140.51,134.5999]
[1741407741459,0.03,140.54,140.51,162.57633749]
[1741407741641,0.03,140.54,140.51,180.36863749]
[1741407741939,0.03,140.54,140.51,159.5089]
[1741407742541,0.03,140.54,140.51,180.36863749]
[1741407743254,0.03,140.54,140.51,141.7166]
[1741407745763,20.88973749,140.54,140.51,134.5999]
[1741407745961,20.85973749,140.53,140.5,0.033]
[1741407746862,20.85973749,140.51,140.5,0.033]
[1741407748051,27.97663749,140.51,140.5,0.033]
[1741407749170,20.85973749,140.51,140.5,0.033]
[1741407749472,20.85973749,140.52,140.5,0.033]
[1741407749758,7.8475,140.53,140.5,0.033]
[1741407749933,20.85973749,140.52,140.5,0.033]
[1741407750532,20.85973749,140.51,140.5,0.033]
[1741407751166,20.85973749,140.52,140.5,0.033]
[1741407751866,20.85973749,140.51,140.5,0.033]
[1741407757279,13.32287247,140.51,140.5,0.033]
[1741407759751,13.32287247,140.52,140.5,0.033]
[1741407760072,1.5371,140.53,140.5,0.033]
[1741407760651,13.35287247,140.54,140.5,0.033]
[1741407761342,20.83777949,140.54,140.5,0.033]
[1741407761547,20.80777949,140.53,140.5,0.033]
[1741407762378,0.03,140.54,140.5,0.033]
[1741407763974,20.83777949,140.54,140.5,0.033]
[1741407764173,0.03,140.54,140.5,0.033]
[1741407764377,0.03,140.54,140.52,20.80777949]
[1741407764550,0.03,140.54,140.53,20.80777949]
[1741407764960,0.03,140.54,140.53,155.40767949]
[1741407765174,0.03,140.54,140.53,174.05732835]
[1741407765354,0.03,140.54,140.53,175.71062835]
[1741407766576,22.38087949,140.62,140.54,18.64964886]
[1741407766871,20.80777949,140.61,140.55,20.80777949]
[1741407767080,20.80777949,140.6,140.54,155.40767949]
[1741407767782,8.6846,140.62,140.54,155.40767949]
[1741407767783,20.80777949,140.61,140.55,20.80777949]
[1741407768776,20.80777949,140.61,140.55,155.40767949]
[1741407769171,20.80777949,140.6,140.55,134.5999]
[1741407769478,20.80777949,140.59,140.54,134.5999]
[1741407769867,20.80777949,140.56,140.5,155.44067949]
[1741407770064,19.80777949,140.55,140.5,134.6329]
[1741407770251,6.56,140.6,140.52,20.80777949]
[1741407770453,20.80777949,140.58,140.52,20.80777949]
[1741407770653,20.80777949,140.57,140.51,20.80777949]
[1741407770862,20.80777949,140.57,140.51,162.52407949]
[1741407771061,27.92167949,140.57,140.51,162.52407949]
[1741407771685,20.80777949,140.56,140.51,141.7163]
[1741407771868,20.80777949,140.56,140.51,134.5999]
[1741407772071,20.80777949,140.55,140.51,134.5999]
[1741407773379,20.80777949,140.56,140.51,141.7168]
[1741407773963,20.80777949,140.55,140.51,134.5999]
[1741407774278,20.80777949,140.54,140.5,0.033]
[1741407774583,20.80777949,140.53,140.5,0.033]
[1741407775081,20.80777949,140.54,140.5,0.033]
[1741407776883,20.80777949,140.55,140.5,0.033]
[1741407777083,20.80777949,140.56,140.51,20.80777949]
[1741407777386,27.92157949,140.57,140.51,27.92427949]
[1741407777781,20.80777949,140.58,140.52,20.80777949]
[1741407778086,20.80777949,140.57,140.51,162.52417949]
[1741407778281,20.80777949,140.56,140.51,141.7164]
[1741407778702,20.80777949,140.57,140.51,162.52417949]
[1741407780600,20.80777949,140.58,140.52,20.80777949]
[1741407781583,20.80777949,140.58,140.53,7.1159]
[1741407781982,7.1125,140.6,140.53,27.92367949]
[1741407782174,27.92027949,140.6,140.54,20.80777949]
[1741407782595,20.80777949,140.59,140.53,162.52357949]
[1741407783079,27.92067949,140.59,140.53,162.52357949]
[1741407783796,27.92067949,140.59,140.53,141.7158]
[1741407783999,20.80777949,140.58,140.53,141.7158]
[1741407784300,27.92127949,140.58,140.53,141.7158]
[1741407784906,27.92127949,140.58,140.53,134.5999]
[1741407785114,7.1135,140.58,140.53,134.5999]
[1741407785395,27.92127949,140.58,140.53,141.7157]
[1741407785600,27.92077949,140.59,140.53,162.52347949]
[1741407785795,20.80777949,140.59,140.53,162.52347949]
[1741407785997,7.1108,140.63,140.57,20.80777949]
[1741407786312,20.80777949,140.61,140.55,20.80777949]
[1741407787209,20.80777949,140.62,140.56,20.80777949]
[1741407787897,20.80777949,140.61,140.55,20.80777949]
[1741407788102,20.80777949,140.61,140.56,7.1143]
[1741407790209,20.83777949,140.62,140.56,27.92207949]
[1741407790403,0.03,140.62,140.58,20.80777949]
[1741407790611,0.03,140.62,140.58,155.40767949]
[1741407790813,0.03,140.62,140.59,20.80777949]
[1741407793689,0.03,140.62,140.58,155.40767949]
[1741407794208,20.80777949,140.61,140.55,134.5999]
[1741407794407,20.80777949,140.61,140.55,155.40767949]
[1741407794786,20.80777949,140.6,140.55,134.5999]
[1741407795017,20.80777949,140.6,140.54,155.40767949]
[1741407795320,20.80777949,140.61,140.55,20.80777949]
[1741407795514,20.83777949,140.62,140.56,20.80777949]
[1741407795701,7.1414,140.62,140.56,20.80777949]
[1741407795895,27.94917949,140.62,140.56,20.80777949]
[1741407796229,7.1414,140.62,140.57,20.80777949]
[1741407796921,27.94917949,140.62,140.56,20.80777949]
[1741407798024,27.94917949,140.62,140.55,7.1149]
[1741407798320,27.94917949,140.62,140.56,27.92177949]
[1741407799514,0.03,140.62,140.57,20.80777949]
[1741407800321,0.03,140.62,140.57,27.92147949]
[1741407800520,0.03,140.62,140.57,162.52137949]
[1741407800690,0.03,140.62,140.59,20.80777949]
[1741407800897,0.03,140.62,140.6,20.80777949]
[1741407801108,0.03,140.62,140.59,20.80777949]
[1741407801326,0.03,140.62,140.58,20.80777949]
[1741407802413,0.03,140.62,140.57,162.52137949]
[1741407804137,0.03,140.62,140.58,20.80777949]
[1741407804438,0.03,140.62,140.57,162.52137949]
[1741407804834,0.03,140.62,140.57,155.40767949]
[1741407805042,20.80777949,140.61,140.57,134.5999]
[1741407805209,13.30368781,140.61,140.57,134.5999]
[1741407805411,13.33368781,140.62,140.57,134.5999]
[1741407805631,13.30368781,140.61,140.55,7.1147]
[1741407805930,13.33368781,140.62,140.56,13.30368781]
[1741407806318,13.33368781,140.62,140.56,20.41778781]
[1741407806319,20.44508781,140.62,140.56,20.41778781]
[1741407806627,13.33368781,140.62,140.56,20.41778781]
[1741407806831,0.03,140.62,140.58,13.30368781]
[1741407807838,0.03,140.62,140.58,147.90358781]
[1741407808404,0.03,140.62,140.59,7.1128]
[1741407808927,0.03,140.62,140.59,20.41648781]
[1741407809337,0.03,140.62,140.59,155.01638781]
[1741407809509,0.03,140.62,140.6,13.30368781]
[1741407809909,0.03,140.62,140.59,155.01638781]
[1741407811510,0.03,140.62,140.59,141.7127]
[1741407812238,0.03,140.62,140.59,134.5999]
[1741407812814,13.33368781,140.62,140.56,20.41798781]
[1741407814634,13.30368781,140.61,140.56,7.1143]
[1741407816247,13.33368781,140.62,140.56,20.41798781]
[1741407817043,0.03,140.62,140.56,20.41798781]
[1741407817337,0.03,140.62,140.57,13.30368781]
[1741407817720,0.03,140.62,140.58,7.1133]
[1741407819138,0.03,140.62,140.58,141.7132]
[1741407819345,0.03,140.62,140.58,172.80028781]
[1741407820752,0.03,140.62,140.58,159.4966]
[1741407821447,0.03,140.62,140.58,141.7132]
[1741407824741,0.03,140.62,140.58,155.01688781]
[1741407824950,0.03,140.62,140.58,20.41698781]
[1741407827143,0.03,140.62,140.58,38.20038781]
[1741407827330,0.03,140.62,140.61,13.30368781]
[1741407827651,0.03,140.62,140.61,147.90358781]
[1741407829122,0.03,140.67,140.62,159.4896]
[1741407829344,0.03,140.67,140.66,13.30368781]
[1741407831328,0.03,140.67,140.65,13.30368781]
[1741407832730,0.03,140.67,140.64,13.30368781]
[1741407833942,13.33368781,140.67,140.63,134.5999]
[1741407834153,13.30368781,140.66,140.6,147.90358781]
[1741407834454,0.03,140.67,140.6,141.7121]
[1741407834653,0.03,140.67,140.62,13.30368781]
[1741407835234,0.03,140.67,140.63,13.30368781]
[1741407835548,0.03,140.67,140.63,147.90358781]
[1741407835749,0.03,140.67,140.63,134.5999]
[1741407837457,0.03,140.67,140.63,147.90358781]
[1741407838050,6.6383,140.68,140.63,147.90358781]
[1741407838354,13.30368781,140.69,140.63,147.90358781]
[1741407838532,20.41158781,140.69,140.63,155.01418781]
[1741407838738,20.41158781,140.69,140.63,147.90358781]
[1741407839151,20.41158781,140.69,140.63,134.5999]
[1741407839461,13.30368781,140.68,140.63,134.5999]
[1741407839646,13.30368781,140.67,140.63,134.5999]
[1741407839843,13.30368781,140.67,140.61,147.90358781]
[1741407840267,24.8774,140.69,140.62,13.30368781]
[1741407840268,7.1079,140.69,140.62,13.30368781]
[1741407840445,13.30368781,140.68,140.61,155.01498781]
[1741407840863,7.1088,140.67,140.61,147.90358781]
[1741407841041,20.41248781,140.67,140.61,147.90358781]
[1741407841243,20.41248781,140.67,140.61,155.01538781]
[1741407841664,20.41248781,140.67,140.61,13.30368781]
[1741407843969,13.30368781,140.69,140.63,13.30368781]
[1741407845666,20.41148781,140.69,140.62,13.30368781]
[1741407847170,20.41148781,140.69,140.63,7.1108]
[1741407847771,13.30368781,140.67,140.61,141.7113]
[1741407847972,13.30368781,140.67,140.61,141.7443]
[1741407848157,13.30368781,140.67,140.61,155.04798781]
[1741407848969,7.1093,140.66,140.61,155.04798781]
[1741407849176,20.41258781,140.67,140.61,155.04798781]
[1741407849474,7.1089,140.67,140.61,155.04798781]
[1741407849849,13.33368781,140.68,140.62,13.30368781]
[1741407850045,7.1384,140.68,140.62,13.30368781]
[1741407850249,20.44208781,140.68,140.62,13.30368781]
[1741407850472,7.1384,140.68,140.62,13.30368781]
[1741407850772,20.44208781,140.68,140.62,13.30368781]
[1741407850976,20.44208781,140.68,140.62,20.41468781]
[1741407851572,0.03,140.68,140.62,20.41468781]
[1741407851779,0.03,140.68,140.62,155.01458781]
[1741407852156,20.44208781,140.68,140.62,155.01458781]
[1741407853378,0.03,140.68,140.62,155.01458781]
[1741407854400,7.1383,140.68,140.62,155.01458781]
[1741407854857,20.44198781,140.68,140.62,155.01458781]
[1741407855487,20.44198781,140.68,140.62,141.7109]
[1741407855979,13.30368781,140.67,140.62,134.5999]
[1741407856174,20.44198781,140.68,140.62,134.5999]
[1741407856353,20.44198781,140.68,140.62,141.711]
[1741407857673,20.44198781,140.68,140.62,7.1111]
[1741407858384,20.44198781,140.68,140.61,20.44828781]
[1741407859778,13.33368781,140.68,140.62,13.30368781]
[1741407859983,7.1383,140.68,140.62,13.30368781]
[1741407860359,20.44198781,140.68,140.62,13.30368781]
[1741407861378,20.44198781,140.68,140.63,7.1108]
[1741407861879,20.44198781,140.68,140.62,13.30368781]
[1741407862071,20.44198781,140.68,140.62,20.41478781]
[1741407862279,7.1383,140.68,140.62,20.41478781]
[1741407863387,13.33368781,140.68,140.62,20.41478781]
[1741407863680,0.03,140.68,140.62,20.41478781]
[1741407864378,13.33368781,140.68,140.61,141.7444]
[1741407864558,13.33368781,140.68,140.61,20.44818781]
[1741407865554,7.1088,140.67,140.61,20.44818781]
[1741407867079,0.03,140.68,140.61,155.04808781]
[1741407867385,0.03,140.68,140.64,13.30368781]